Workbook

Sheet Sheet1
Q1: Return On Investment Calculator
R3: based on average machine rate per hour
AV4: This form is provided by Yushin America as an example of calculating the Return on Investment of capital equipment.
A5: Company | Y5: Work cell ID | AW5: It is not a guarantee of actual results. Yushin is not responsible for accuracy of the data input or content.
A6: Location
A7: Contact name | Y7: Proposal number | AO7: Date | AV7: Use of this form:
A8: Contact phone | Y8: Robot manufacturer | AW8: TEXT DATA
A9: Contact e-mail | Y9: Robot model | AX9: Enter data in those cells highlighted in light green.
Y10: Additional equipment | AX10: To easily reset all manually inputted text fields to their blank condition, click the "Clear Text Data" button.
A11: Data provided by | R11: date
A12: Data entered by | R12: date
A14: Sales contact organization | Y14: Sales contact phone | AW14: CALCULATION DATA
A15: Sales contact name | Y15: Sales contact e-mail | AX15: Enter data in those cells highlighted in light green.
AX16: If the capital, installation and other costs are entered before the data, the estimated savings will update with each relevant entry.
A17: capital costs | AX17: The formula in the expected overall cycle field can be overtyped.
A18: installation and other costs | AX18: To easily reset all manually inputted data fields to their blank condition, click the "Reset Calculations" button.
N20: press size | T20: press rate | AK20: press size | AP20: press rate
A21: machine rate per hour WITH labor | N21: tons cf | T21: =VLOOKUP(N21,M81:P90,2,FALSE) ->  | X21: machine rate per hour (NO LABOR) | AK21: =+N21 -> tons cf | AP21: =VLOOKUP(N21,W81:Z90,2,FALSE) -> 
A22: manually inputted machine rate per hour WITH labor | T22: 0 | X22: manually inputted machine rate per hour (NO LABOR) | AP22: 0
N24: current | S24: expected | AK24: current | AP24: expected
A25: dollars per machine hour | N25: =IF(T22=0,T21,T22) ->  | S25: =+N25 ->  | X25: dollars per machine hour | AK25: =IF(AP22=0,AP21,AP22) ->  | AP25: =+AK25 -> 
A26: total machine hours per week | S26: =+N26 -> 0 | X26: total machine hours per week | AK26: =+N26 -> 0 | AP26: =+AK26 -> 0
A27: weeks per year | S27: =+N27 -> 0 | X27: weeks per year | AK27: =+N27 -> 0 | AP27: =+AK27 -> 0
A28: machine efficiency | S28: =+N28 -> 0 | X28: machine efficiency | AK28: 0 | AP28: =+AK28 -> 0
A29: mold open time | S29: =+N29 -> 0 | X29: mold open time | AK29: 0 | AP29: =+S29 -> 0
A30: overall cycle time | S30: =+N30-(N29-S29) -> 0 | X30: overall cycle time | AK30: 0 | AP30: 0
N32: WITH Labor | S32: WITHOUT Labor
A33: months to pay-off | N33: =+'graphics calcs'!D45 ->  | S33: =+AK33 ->  | X33: months to pay-off | AK33: =+'graphics calcs'!O45 -> 
A34: result after one year | N34: =+'graphics calcs'!C23 ->  | S34: =+AK34 ->  | X34: result after one year | AK34: =+'graphics calcs'!N23 -> 
A35: result after two years | N35: =+'graphics calcs'!C24 ->  | S35: =+AK35 ->  | X35: result after two years | AK35: =+'graphics calcs'!N24 -> 
A36: result after three years | N36: =+'graphics calcs'!C25 ->  | S36: =+AK36 ->  | X36: result after three years | AK36: =+'graphics calcs'!N25 -> 
A38: Machine rates provided are based on averages from all of the regions in the USA.
A39: They are only guidelines and will not necessarily match rates in your facility.
A41: The information contained within this document is an example of an ROI calculation. The actual payback shown is an estimate based upon the information provided and is not guaranteed.
M60: tons cf
H61: 1 | M61: <50 | N61: 39.59
H62: 2 | M62: 50-99 | N62: 43.65
H63: 3 | M63: 100-299 | N63: 51.02
H64: 4 | M64: 300-499 | N64: 59.69
H65: 5 | M65: 500-749 | N65: 76.86
H66: 6 | M66: 750-999 | N66: 107.59
H67: 7 | M67: 1000-1499 | N67: 174.31
H68: 8 | M68: 1500-1999 | N68: 214.21
H69: 9 | M69: 2000-2999 | N69: 331.54
H70: 10 | M70: 3000+ | N70: 416.94
A72: 4177despairmt
M73: 4th qtr. 2013 Plastics Technology
M80: tons cf | N80: w/Labor | W80: tons cf | X80: w/o Labor
H81: 1 | M81: <75 | N81: 40 | W81: <75 | X81: 20
H82: 2 | M82: 76-100 | N82: 42 | W82: 76-100 | X82: 20
H83: 3 | M83: 100-299 | N83: 45 | W83: 100-299 | X83: 33
H84: 4 | M84: 300-500 | N84: 50 | W84: 300-500 | X84: 38
H85: 5 | M85: 501-750 | N85: 83 | W85: 501-750 | X85: 61
H86: 6 | M86: 751-1000 | N86: 119 | W86: 751-1000 | X86: 85
H87: 7 | M87: 1001-1250 | N87: 131 | W87: 1001-1250 | X87: 114
H88: 8 | M88: 1251-1500 | N88: 169 | W88: 1251-1500 | X88: 152
H89: 9 | M89: 1501-2500 | N89: 193 | W89: 1501-2500 | X89: 175
H90: 10 | M90: 2500+ | N90: 222 | W90: 2500+ | X90: 204
M93: 2015 MAPP

Sheet Sheet2

Sheet graphics calcs (hidden)
AZ1: 4177despairmt
AB2: with labor | AC2: w/o labor
B3: MACHINE UTILIZATION | C3: current | D3: expected | H3: month | I3: costs | J3: savings | K3: net profit | M3: MACHINE UTILIZATION | N3: current | O3: expected | S3: month | T3: costs | U3: savings | V3: net profit | AA3: savings | AB3: net profit | AC3: net profit
B4: dollars per machine hour (w/Labor) | C4: =+Sheet1!N25 ->  | D4: =+Sheet1!S25 ->  | I4: =+C19+C20 -> 0 | J4: =+D15 ->  | K4: =+J4-I4 ->  | M4: dollars per machine hour (w/o Labor) | N4: =+Sheet1!AK25 ->  | O4: =+Sheet1!AP25 ->  | T4: =+N19+N20 -> 0 | U4: =+O15 ->  | V4: =+U4-T4 ->  | AA4: =+J4 ->  | AB4: =+K4 ->  | AC4: =+V4 -> 
B5: total machine hours per week | C5: =+Sheet1!N26 -> 0 | D5: =+Sheet1!S26 -> 0 | H5: 1 | J5: =+J4/12 ->  | K5: =-I4+J5 ->  | M5: total machine hours per week | N5: =+Sheet1!AK26 -> 0 | O5: =+Sheet1!AP26 -> 0 | S5: 1 | U5: =+U4/12 ->  | V5: =-T4+U5 ->  | AA5: =+J5 ->  | AB5: =+K5 ->  | AC5: =+V5 -> 
B6: weeks per year | C6: =+Sheet1!N27 -> 0 | D6: =+Sheet1!S27 -> 0 | H6: 2 | J6: =+J5 ->  | K6: =+K5+J6 ->  | M6: weeks per year | N6: =+Sheet1!AK27 -> 0 | O6: =+Sheet1!AP27 -> 0 | S6: 2 | U6: =+U5 ->  | V6: =+V5+U6 -> 
B7: machine efficiency | C7: =+Sheet1!N28 -> 0 | D7: =+Sheet1!S28 -> 0 | H7: 3 | J7: =+J6 ->  | K7: =+K6+J7 ->  | M7: machine efficiency | N7: =+Sheet1!AK28 -> 0 | O7: =+Sheet1!AP28 -> 0 | S7: 3 | U7: =+U6 -> 
B8: mold open time | C8: =+Sheet1!N29 -> 0 | D8: =+Sheet1!S29 -> 0 | H8: 4 | J8: =+J7 ->  | M8: mold open time | N8: =+Sheet1!AK29 -> 0 | O8: =+Sheet1!AP29 -> 0 | S8: 4 | U8: =+U7 -> 
B9: overall cycle time | C9: =+Sheet1!N30 -> 0 | D9: =+Sheet1!S30 -> 0 | H9: 5 | M9: overall cycle time | N9: =+Sheet1!AK30 -> 0 | O9: =+Sheet1!AP30 -> 0 | S9: 5
B10: increased open machine time | D10: =1-(+D9/C9) ->  | H10: 6 | M10: increased open machine time | O10: =1-(+O9/N9) ->  | S10: 6
B11: dollars per machine week | D11: =+D4*D5*D7 ->  | H11: 7 | M11: dollars per machine week | O11: =+O4*O5*O7 ->  | S11: 7
B12: savings per week | D12: =+D11*D10 ->  | H12: 8 | M12: savings per week | O12: =+O11*O10 ->  | S12: 8
B13: savings per year | D13: =+D6*D12 ->  | H13: 9 | M13: savings per year | O13: =+O6*O12 ->  | S13: 9
H14: 10 | S14: 10
B15: ADDITIONAL MACHINE UTILIZATION | D15: =+D13 ->  | H15: 11 | M15: ADDITIONAL MACHINE UTILIZATION | O15: =+O13 ->  | S15: 11
H16: 12 | S16: 12
H17: 13 | S17: 13
H18: 14 | S18: 14
B19: capital costs | C19: =+Sheet1!N17 -> 0 | H19: 15 | M19: capital costs | N19: =+C19 -> 0 | S19: 15
B20: installation and other costs | C20: =+Sheet1!N18 -> 0 | H20: 16 | M20: installation and other costs | N20: =+C20 -> 0 | S20: 16
H21: 17 | S21: 17
H22: 18 | S22: 18
B23: result after one year | C23: =+K16 ->  | H23: 19 | M23: result after one year | N23: =+V16 ->  | S23: 19
B24: result after two years | C24: =+K28 ->  | H24: 20 | M24: result after two years | N24: =+V28 ->  | S24: 20
B25: result after three years | C25: =+K40 ->  | H25: 21 | M25: result after three years | N25: =+V40 ->  | S25: 21
H26: 22 | S26: 22
H27: 23 | S27: 23
H28: 24 | S28: 24
H29: 25 | S29: 25
H30: 26 | S30: 26
H31: 27 | S31: 27
H32: 28 | S32: 28
H33: 29 | S33: 29
H34: 30 | S34: 30
H35: 31 | S35: 31
H36: 32 | S36: 32
H37: 33 | S37: 33
H38: 34 | S38: 34
H39: 35 | S39: 35
H40: 36 | S40: 36
C43: savings per month | D43: =+J4/12 ->  | N43: savings per month | O43: =+U4/12 -> 
C44: total expenditure | D44: =+I4 -> 0 | N44: total expenditure | O44: =+T4 -> 0
C45: months to payoff | D45: =+D44/D43 ->  | N45: months to payoff | O45: =+O44/O43 -> 

Sheet calcs (hidden)
A3: R | B3: S | C3: L | D3: P | E3: I | F3: U | H3: current | I3: expected | K3: RETURN ON INVESTMENT | N3: PROFITS FROM ADDITIONAL PRODUCTS | O3: current | P3: expected | R3: LABOR SAVINGS | S3: current | T3: expected | V3: SCRAP COSTS | W3: current | X3: expected | Z3: REPAIR COSTS | AA3: current | AB3: expected | AD3: MACHINE UTILIZATION | AE3: current | AF3: expected
G4: number of operators | H4: 1 | I4: 0.5 | K4: capital costs | L4: =+H24 -> 49500 | N4: parts cost each | O4: =+H11 -> 0.08 | P4: =+I11 -> 0.074 | R4: number of operators | S4: =+H4 -> 1 | T4: =+I4 -> 0.5 | V4: parts cost each | W4: =+H11 -> 0.08 | X4: =+I11 -> 0.074 | Z4: mold damage (dollars) | AA4: =+H19 -> 2500 | AB4: =+I19 -> 0 | AD4: dollars per machine hour | AE4: =+H20 -> 100 | AF4: =+I20 -> 100
G5: hours per operator per week | H5: 37.5 | I5: =+H5 -> 37.5 | K5: installation and training | L5: =+H25 -> 2500 | N5: part sell price each | O5: =+H12 -> 0.12 | P5: =+I12 -> 0.12 | R5: hours per operator per week | S5: =+H5 -> 37.5 | T5: =+I5 -> 37.5 | V5: part sell price each | W5: =+H12 -> 0.12 | X5: =+I12 -> 0.12 | Z5: lost production hours due to mold damage | AA5: =+H18 -> 37.5 | AB5: =+I18 -> 0 | AD5: total machine hours per week | AE5: =+H7 -> 37.5 | AF5: 37.5
G6: full burdened labor cost per hour | H6: 20 | I6: =+H6 -> 20 | K6: TOTAL COSTS | L6: =SUM(L4:L5) -> 52000 | N6: number of cavities | O6: =+H10 -> 8 | P6: =+I10 -> 8 | R6: weeks per year | S6: =+H8 -> 50.5 | T6: =+I8 -> 50.5 | V6: percentage of scrap | W6: =+H16 -> 0.04 | X6: =+I16 -> 0.005 | Z6: number of cavities | AA6: =+H10 -> 8 | AB6: =+AA6 -> 8 | AD6: weeks per year | AE6: 50.5 | AF6: 50.5
G7: total machine hours per week | H7: 37.5 | I7: =+H7 -> 37.5 | N7: total machine hours per week | O7: =+H7 -> 37.5 | P7: =+I7 -> 37.5 | R7: full burdened labor cost per hour | S7: =+H6 -> 20 | T7: =+I6 -> 20 | V7: cost to dispose of scrap ($/1000) | W7: =+H17 -> 5 | X7: =+I17 -> 5 | Z7: parts cost each | AA7: =+H11 -> 0.08 | AB7: =+I11 -> 0.074 | AD7: machine efficiency | AE7: 0.805 | AF7: 0.855
G8: weeks per year | H8: 50.5 | I8: =+H8 -> 50.5 | K8: SAVINGS DUE TO MOLD DAMAGE | L8: =+AA18 -> 5287.096774 | N8: weeks per year | O8: =+H8 -> 50.5 | P8: =+I8 -> 50.5 | R8: labor hours per year | S8: =+S4*S5*S6 -> 1893.75 | T8: =+T4*T5*T6 -> 946.875 | V8: number of cavities | W8: =+H10 -> 8 | X8: =+I10 -> 8 | Z8: part sell price each | AA8: =+H12 -> 0.12 | AB8: =+I12 -> 0.12 | AD8: mold open time | AE8: =+H14 -> 2.1 | AF8: =+I14 -> 1.05
G9: machine efficiency | H9: 0.805 | I9: 0.855 | T9: =+T7*T8 -> 18937.5 | V9: total machine hours per week | W9: =+H7 -> 37.5 | X9: =+I7 -> 37.5 | Z9: number of cavities | AA9: =+H10 -> 8 | AB9: =+AA9 -> 8 | AD9: overall cycle time | AE9: =+H15 -> 15.5 | AF9: =+I15 -> 14.45
G10: number of cavities | H10: 8 | I10: =+H10 -> 8 | K10: TOTAL LABOR SAVINGS | L10: =+T11 -> -18937.5 | N10: workcell productivity percentage | O10: =+H13 -> 0.88 | P10: =+I13 -> 0.95 | V10: weeks per year | W10: =+H8 -> 50.5 | X10: =+I8 -> 50.5 | Z10: overall cycle time (seconds) | AA10: =+H15 -> 15.5 | AB10: =+I15 -> 14.45 | AD10: increased open machine time | AF10: =1-(+AF9/AE9) -> 0.06774193548
G11: parts cost each | H11: 0.08 | I11: 0.074 | K11: ADDITIONAL PARTS PROFIT | L11: =+P17 ->  | N11: cycles per hour | O11: =(60*60)/O9 ->  | P11: =(60*60)/P9 ->  | R11: TOTAL LABOR SAVINGS | T11: =+S9-T9 -> -18937.5 | V11: overall cycle time | W11: =+H15 -> 15.5 | X11: =+I15 -> 14.45 | Z11: profit per part | AA11: =+AA8-AA7 -> 0.04 | AB11: =+AB8-AB7 -> 0.046 | AD11: dollars per machine week | AF11: =+AF4*AF5 -> 3750
G12: part sell price each | H12: 0.12 | I12: =+H12 -> 0.12 | K12: TOTAL SAVINGS | L12: =SUM(L8:L11) ->  | N12: parts per hour | O12: =+O6*O11 ->  | P12: =+P6*P11 ->  | V12: cycles per hour | W12: =(60*60)/W11 -> 232.2580645 | X12: =(60*60)/X11 -> 249.1349481 | Z12: profit per cycle | AA12: =+AA9*AA11 -> 0.32 | AB12: =+AB9*AB11 -> 0.368 | AD12: savings per week | AF12: =+AF10*AF11 -> 254.0322581
G13: workcell productivity percentage | H13: 0.88 | I13: 0.95 | K13: MACHINE UTILIZATION | L13: =+AF15 -> 12828.62903 | N13: parts per year at 100% productivity | O13: =+O7*O8*O12 ->  | P13: =+P7*P8*P12 ->  | V13: parts per hour | W13: =+W8*W12 -> 1858.064516 | X13: =+X8*X12 -> 1993.079585 | Z13: cycles per hour | AA13: =(60*60)/AA10 -> 232.2580645 | AB13: =(60*60)/AB10 -> 249.1349481 | AD13: savings per year | AF13: =+AF6*AF12 -> 12828.62903
G14: mold open time | H14: 2.1 | I14: 1.05 | N14: parts per year at workcell productivity | O14: =+O10*O13 ->  | P14: =+P10*P13 ->  | V14: parts per year | W14: =+W9*W10*W13 -> 3518709.677 | X14: =+X9*X10*X13 -> 3774394.464 | Z14: parts per hour | AA14: =+AA6*AA13 -> 1858.064516 | AB14: =+AB6*AB13 -> 1993.079585
G15: overall cycle time | H15: 15.5 | I15: =(-H14+I14)+H15 -> 14.45 | K15: PROFIT RESULT AFTER 1 YEAR | L15: =+L11+L10+L9+L8-L5-L4 ->  | N15: part profitability per year | O15: =(+O5-O4)*O14 ->  | P15: =(+P5-P4)*P14 ->  | V15: scrapped parts per year | W15: =+W6*W14 -> 140748.3871 | X15: =+X6*X14 -> 18871.97232 | Z15: lost parts due to mold damage | AA15: =+AA5*AA14 -> 69677.41935 | AB15: =+AB5*AB14 -> 0 | AD15: ADDITIONAL MACHINE UTILIZATION | AF15: =+AF13 -> 12828.62903
G16: percentage of scrap | H16: 0.04 | I16: 0.005 | K16: PROFIT RESULT AFTER 2 YEARS | L16: =+L12+L15 ->  | V16: lost profit of scrapped parts per year | W16: =(+W5-W4)*W15 -> 5629.935484 | X16: =(+X5-X4)*X15 -> 868.1107266 | Z16: lost profit due to mold damage | AA16: =+AA11*AA15 -> 2787.096774 | AB16: =+AB11*AB15 -> 0
G17: cost to dispose of scrap ($/1000) | H17: 5 | I17: 5 | K17: PROFIT RESULT AFTER 3 YEARS | L17: =+L12+L16 ->  | N17: ADDITIONAL PARTS PROFIT | P17: =+P15-O15 ->  | V17: cost to dispose of scrap | W17: =(+W15/1000)*W7 -> 703.7419355 | X17: =(+X15/1000)*X7 -> 94.35986159
G18: lost production hours due to mold damage | H18: 37.5 | I18: 0 | V18: lost production hours due to mold damage | W18: =+H18 -> 37.5 | X18: =+I18 -> 0 | Z18: TOTAL COST DUE TO MOLD DAMAGE | AA18: =+AA4+AA16 -> 5287.096774 | AB18: =+AB4+AB16 -> 0
G19: mold damage (dollars) | H19: 2500 | I19: 0
G20: dollars per machine hour | H20: 100 | I20: 100 | V20: lost profit due to lost production | W20: =(+W5-W4)*W13*W18 -> 2787.096774 | X20: =(+X5-X4)*X13*X18 -> 0
K21: MONTHS TO EXPENDITURE PAYOFF
H23: expected | V23: TOTAL COST DUE TO SCRAP | X23: =(+W16+W17+W20)-(X16+X17+X20) -> 8158.303605
G24: capital costs | H24: 49500
G25: installation and training | H25: 2500
G28: repair costs | H28: R
G29: decreased scrap | H29: S
G30: labor savings | H30: L
G31: addition product profits | H31: P
G34: tons cf | H34: Q4 -2013 | I34: Q2 -2009
G35: <50 | H35: 39.59 | I35: 37.72
G36: 50-99 | H36: 43.65 | I36: 43.88
G37: 100-299 | H37: 51.02 | I37: 47.86
G38: 300-499 | H38: 59.69 | I38: 55.82
G39: 500-749 | H39: 76.86 | I39: 70.46
G40: 750-999 | H40: 107.59 | I40: 88.61
G41: 1000-1499 | H41: 174.31 | I41: 103.98
G42: 1500-1999 | H42: 214.21 | I42: 141.59
G43: 2000-2999 | H43: 331.54 | I43: 274.98
G44: 3000+ | H44: 416.94 | I44: 339.29
G47: 4th qtr 2013 Plastics Technology
H49: MAPP 2015
G50: tons cf | H50: w/Labor | I50: w/o Labor
G51: <75 | H51: 40 | I51: 20
G52: 76-100 | H52: 42 | I52: 20
G53: 100-299 | H53: 45 | I53: 33
G54: 300-500 | H54: 50 | I54: 38
G55: 501-750 | H55: 83 | I55: 61
G56: 751-1000 | H56: 119 | I56: 85
G57: 1001-1250 | H57: 131 | I57: 114
G58: 1251-1500 | H58: 169 | I58: 152
G59: 1501-2500 | H59: 193 | I59: 175
G60: 2500+ | H60: 222 | I60: 204
G63: December 2015 - MAPP
N101: 4177despairmt

Sheet macros (hidden)
D1: 4177despairmt
C3: Clear_Text_Data | I3: Reset_Calculations
D5: G5:W5 | E5: 'delete' | J5: N17:R17 | K5: 'delete'
D6: G6:W6 | E6: 'delete' | J6: N18:R18 | K6: 'delete'
D7: G7:W7 | E7: 'delete' | J7: N21:R21 | K7: tons cf
D8: G8:W8 | E8: 'delete' | J8: T22:W22 | K8: "0"
D9: G9:W9 | E9: 'delete' | J9: AP22:AP22 | K9: "0"
D10: G11:Q11 | E10: 'delete' | J10: N25:R25 | K10: "=IF(T22=0,T21,T22)"
D11: G12:Q12 | E11: 'delete' | J11: S25:W25 | K11: "=+N25"
D12: T11:W11 | E12: 'delete' | J12: N26:R26 | K12: 'delete'
D13: T12:W12 | E13: 'delete' | J13: S26:W26 | K13: "=+N26"
D14: AC5:AT6 | E14: 'delete' | J14: N27:R27 | K14: 'delete'
D15: AD7:AN7 | E15: 'delete' | J15: S27:W27 | K15: "=+N27"
D16: AQ7:AT7 | E16: 'delete' | J16: N28:R28 | K16: 'delete'
D17: AE8:AT8 | E17: 'delete' | J17: S28:W28 | K17: "=+N28"
D18: AE9:AT9 | E18: 'delete' | J18: N29:R29 | K18: 'delete'
D19: AC10:AT12 | E19: 'delete' | J19: S29:W29 | K19: "=+N29"
D20: I14:W14 | E20: 'delete' | J20: N30:R30 | K20: 'delete'
D21: I15:W15 | E21: 'delete' | J21: S30:W30 | K21: "=+N30-(N29-S29)"
D22: AE14:AT14 | E22: 'delete' | J22: N17:R17 | K22: 'enter'
D23: AE15:AT15 | E23: 'delete'
D24: G5:W5 | E24: 'enter'

Sheet notes (hidden)
E1: 4177despairmt
B4: This form is provided by Yushin America as an example of calculating the Return on Investment of capital equipment.
C5: It is not a guarantee of actual results. Yushin is not responsible for accuracy of the data input or content.
B7: Use of this form:
C8: TEXT DATA
D9: Enter data in those cells highlighted in light green.
D10: Although inclusion of all data in the fields is not required, it may prove helpful when reviewing multiple printed copies.
D11: To easily reset all manually inputted text fields to their blank condition, click the "Clear Text Data" button.
C13: CALCULATION DATA
D14: Enter data in those cells highlighted in light green.
D15: If the capital, installation and other costs are entered before the data, the estimated savings will update with each relevant entry.
D16: Although inclusion of all data in the fields is not required, the more data provided will enable more accurate results.
D17: The formula in the expected overall cycle field can be overtyped.
D18: To easily reset all manually inputted data fields to their blank condition, click the "Reset Calculations" button.
